bitfinex/quotes_ETHUSD_20250930
["timestamp","ask_amount","ask_price","bid_price","bid_amount"]
[1759274523770,0.793,4137.3,4137.2,5.335]
[1759274524667,0.793,4137.3,4137.2,5.5662]
[1759274525839,0.793,4137.3,4137.2,21.041357]
[1759274526164,0.793,4137.3,4137.2,21.259357]
[1759274526369,0.793,4137.3,4137.2,25.053216]
[1759274526683,0.001,4137.3,4137.2,27.47030968]
[1759274526836,0.001,4137.3,4137.2,10.82229368]
[1759274527143,0.001,4137.3,4137.2,29.97974468]
[1759274527745,0.001,4138.2,4137.3,32.4]
[1759274527955,0.001,4138.2,4137.7,2.4168016]
[1759274528151,0.001,4138.2,4137.7,37.7576016]
[1759274528359,0.001,4138.2,4137.7,38.4278016]
[1759274529772,0.001,4138.2,4137.7,36.011]
[1759274529972,0.001,4138.2,4137.7,22.210806]
[1759274530173,0.793,4138.2,4137.7,19.921095]
[1759274530366,0.1218,4138.0,4137.7,10.71041]
[1759274530570,0.1218,4138.0,4137.7,10.94161]
[1759274530947,0.1218,4138.0,4137.7,16.563393]
[1759274531372,0.1218,4138.0,4137.7,14.908063]
[1759274531610,2.53843661,4138.0,4137.7,13.78064157]
[1759274531779,0.1218,4138.0,4137.7,12.482182]
[1759274532074,0.1218,4138.0,4137.7,17.330695]
[1759274532880,0.1218,4138.0,4137.7,18.544956]
[1759274533264,0.1218,4138.0,4137.7,15.809856]
[1759274533776,0.001,4138.0,4137.6,1.29845957]
[1759274533976,3.20974319,4137.8,4137.7,0.86531688]
[1759274534282,3.20886001,4137.6,4137.5,0.64905089]
[1759274534450,3.20886001,4137.6,4137.5,5.98205089]
[1759274534777,3.90856001,4137.6,4137.5,5.98205089]
[1759274535150,3.90856001,4137.6,4137.5,5.333]
[1759274536677,1.4917,4137.6,4137.5,5.333]
[1759274536866,3.90856001,4137.6,4137.5,5.333]
[1759274538456,3.20886001,4137.6,4137.5,5.333]
[1759274539487,3.90386001,4137.6,4137.5,5.333]
[1759274540185,3.90386001,4137.6,4137.5,5.98205089]
[1759274541089,3.67416001,4137.6,4137.5,5.333]
[1759274541281,3.67416001,4137.6,4137.5,5.98205089]
[1759274541856,3.90386001,4137.6,4137.5,5.98205089]
[1759274542291,3.20886001,4137.6,4137.5,5.98205089]
[1759274543098,3.20886001,4137.6,4137.5,5.333]
[1759274543894,3.20894532,4137.5,4137.3,0.86531688]
[1759274544101,3.20891842,4137.5,4137.4,5.328]
[1759274544969,3.20891842,4137.5,4137.4,3.16318833]
[1759274544970,3.90391842,4137.5,4137.4,3.16318833]
[1759274545190,3.90391842,4137.5,4137.4,5.325]
[1759274545788,3.20891842,4137.5,4137.4,5.325]
[1759274546290,3.90391842,4137.5,4137.4,5.325]
[1759274547194,3.20909368,4137.2,4137.0,0.65018833]
[1759274547377,3.20909368,4137.2,4135.9,2.46146838]
[1759274547378,3.20909368,4137.2,4137.1,5.327]
[1759274547695,3.90409368,4137.2,4137.1,5.327]
[1759274548211,2.41701347,4137.4,4137.1,5.327]
[1759274548212,0.792,4137.4,4137.1,5.327]
[1759274548370,0.001,4137.8,4137.1,5.327]
[1759274548371,3.2088605,4137.6,4137.2,0.2382]
[1759274548706,3.20897684,4137.4,4137.3,2.813]
[1759274549069,0.792,4137.4,4137.3,3.5207]
[1759274550093,0.792,4137.4,4137.3,3.0512]
[1759274550697,0.792,4137.4,4137.3,3.70138833]
[1759274551206,3.20897684,4137.4,4137.3,3.70138833]
[1759274551379,3.20897684,4137.4,4137.3,0.88838833]
[1759274551579,3.20903526,4137.3,4137.2,0.65018833]
[1759274551776,3.20903526,4137.3,4137.2,5.326]
[1759274552581,3.20909368,4137.2,4137.1,0.65018833]
[1759274553118,3.20909368,4137.2,4137.1,5.97618833]
[1759274553119,3.67439368,4137.2,4137.1,5.97618833]
[1759274553277,3.67439368,4137.2,4137.1,5.326]
[1759274553482,3.20909368,4137.2,4137.1,5.326]
[1759274554124,3.20909368,4137.2,4137.1,5.97618833]
[1759274554510,0.001,4137.8,4137.1,6.0337]
[1759274554717,0.792,4137.6,4137.3,0.65015031]
[1759274554884,3.20896038,4137.5,4137.4,3.46215031]
[1759274555086,3.20896038,4137.5,4137.4,0.65015031]
[1759274555312,3.20896038,4137.5,4136.9,2.4]
[1759274555313,2.41703526,4137.3,4137.2,0.65015031]
[1759274555504,3.20903526,4137.3,4137.2,5.325]
[1759274555817,3.43873526,4137.3,4137.2,5.325]
[1759274556005,3.20909368,4137.2,4137.1,0.65015031]
[1759274556316,3.90409368,4137.2,4137.1,5.325]
[1759274557183,3.67439368,4137.2,4137.1,5.325]
[1759274558313,3.20909368,4137.2,4137.1,5.325]
[1759274561219,3.20909368,4137.2,4137.1,5.327]
[1759274561901,3.20909368,4137.2,4137.1,6.0036]
[1759274562087,2.41692122,4137.5,4137.1,6.0036]
[1759274562088,0.792,4137.5,4137.1,6.0036]
[1759274562285,0.792,4137.5,4137.2,1.32750059]
[1759274562286,2.41697684,4137.4,4137.2,1.32750059]
[1759274562489,0.792,4137.2,4137.1,2.515]
[1759274562786,2.41697326,4137.5,4137.1,20.778206]
[1759274563021,0.792,4137.5,4137.2,0.89200307]
[1759274563322,0.792,4137.6,4137.3,4.35243214]
[1759274563617,2.41782229,4137.7,4137.4,0.6766]
[1759274563916,2.41782229,4137.7,4137.6,0.65116937]
[1759274563917,3.2098016,4137.7,4137.6,0.65116937]
[1759274564118,3.2098016,4137.7,4137.6,3.45916937]
[1759274564324,3.2098016,4137.7,4137.6,3.70176937]
[1759274565223,3.2098016,4137.7,4137.6,4.13576937]
[1759274566021,3.2098016,4137.7,4137.6,3.0506]
[1759274566214,3.3306016,4137.7,4137.6,3.45926329]
[1759274569738,3.9934016,4137.7,4137.6,0.65126329]
[1759274569892,3.9934016,4137.7,4137.4,0.65126329]
[1759274569893,3.20891842,4137.5,4137.4,0.65126329]
[1759274570093,3.20891842,4137.5,4137.4,5.317]
[1759274570414,3.32971842,4137.5,4137.4,5.317]
[1759274577534,3.20903526,4137.3,4137.2,0.86783214]
[1759274577831,3.20903526,4137.3,4137.2,6.17883214]
[1759274578036,3.20903526,4137.3,4137.2,5.311]
[1759274579605,3.20903526,4137.3,4137.2,5.96276413]
[1759274580002,3.20903526,4137.3,4137.2,5.311]
[1759274582233,2.41709368,4137.2,4137.1,0.002]
[1759274582413,2.53789368,4137.2,4137.1,5.747]
[1759274582969,2.53789368,4137.2,4137.1,6.85743214]
[1759274583230,3.32989368,4137.2,4137.1,6.85743214]
[1759274583441,3.32989368,4137.2,4137.1,6.85851808]
[1759274584605,0.9128,4137.2,4137.1,5.9896]
[1759274585333,0.1208,4137.2,4137.1,17.38075]
[1759274585541,0.1208,4137.2,4137.1,21.156056]
[1759274586330,0.1208,4137.2,4137.1,28.56821357]
[1759274586720,0.1208,4137.2,4137.1,26.47140657]
[1759274586907,0.1208,4137.2,4137.1,25.172947]
[1759274587330,0.1208,4137.2,4137.1,26.667797]
[1759274587922,0.1208,4137.2,4137.1,25.187576]
[1759274588129,0.1208,4137.2,4137.1,21.403861]
[1759274588340,0.1208,4137.2,4137.1,22.284861]
[1759274589242,0.1208,4137.2,4137.1,21.883278]
[1759274589545,2.53789368,4137.2,4137.1,12.671914]
[1759274589712,2.53789368,4137.2,4137.1,13.16033]
[1759274590846,2.53789368,4137.2,4137.1,8.3896]
[1759274591042,3.32989368,4137.2,4137.1,9.25925976]
[1759274591247,3.32989368,4137.2,4137.1,9.01665976]
[1759274591750,3.32989368,4137.2,4137.1,9.26605976]
[1759274592331,3.32989368,4137.2,4137.1,9.69455976]
[1759274593917,3.32989368,4137.2,4137.1,9.01665976]
[1759274594351,3.32989368,4137.2,4137.1,9.26605976]
[1759274595026,0.9128,4137.2,4137.1,9.69455976]
[1759274595426,3.32989368,4137.2,4137.1,9.69455976]
[1759274596445,3.32989368,4137.2,4137.1,8.3909]
[1759274599355,0.9128,4137.2,4137.1,8.3909]
[1759274600025,3.32989368,4137.2,4137.1,8.3909]
[1759274600425,0.9128,4137.2,4137.1,8.3909]
[1759274602847,3.32989368,4137.2,4137.1,8.3909]
[1759274603052,0.9128,4137.2,4137.1,8.3909]
[1759274603959,0.9128,4137.2,4137.1,23.38462]
[1759274604161,0.9128,4137.2,4137.1,23.117603]
[1759274604365,0.9128,4137.2,4137.1,19.35546]
[1759274605168,0.1208,4137.2,4137.1,19.35546]
[1759274606935,0.1208,4137.2,4137.1,18.973538]
[1759274607561,0.1208,4137.2,4137.1,14.6204]
[1759274607767,0.1208,4137.2,4137.1,14.370706]
[1759274610165,0.1208,4137.2,4137.1,13.942206]
[1759274613041,0.1208,4137.2,4137.1,14.391406]
[1759274618250,0.1208,4137.2,4137.1,13.942206]
[1759274618664,0.1208,4137.2,4137.1,14.391406]
[1759274619291,0.1208,4137.2,4137.1,13.942206]
[1759274620781,0.1208,4137.2,4137.1,37.9624]
[1759274620984,0.1208,4137.2,4137.1,38.4116]
[1759274621781,0.1208,4137.2,4137.1,8.4116]
[1759274622356,0.1208,4137.2,4137.1,38.4116]
[1759274623900,0.1208,4137.2,4137.1,8.4116]
[1759274624686,0.1208,4137.2,4137.1,38.4116]
[1759274628004,0.1208,4137.2,4137.1,27.300023]
[1759274628167,0.1208,4137.2,4137.1,28.542023]
[1759274628478,0.1208,4137.2,4137.1,25.921023]
[1759274628901,0.1208,4137.2,4137.1,26.142023]
[1759274629404,0.1208,4137.2,4137.1,25.921023]
[1759274630205,0.793,4137.7,4137.1,25.921023]
[1759274630206,0.001,4137.7,4137.4,2.41695106]
[1759274630498,0.001,4137.7,4137.1,10.27051955]
[1759274630499,0.001,4137.7,4137.6,2.41686001]
[1759274630698,0.001,4137.7,4137.6,35.33266001]
[1759274630879,0.001,4137.7,4137.6,36.04266001]
[1759274631077,0.001,4137.7,4137.6,37.78113143]
[1759274631269,0.001,4137.7,4137.6,36.04266001]
[1759274632194,0.001,4137.7,4137.6,37.78113143]
[1759274632366,0.001,4137.7,4137.6,33.24766001]
[1759274632568,0.001,4137.7,4137.6,38.55566001]
[1759274636778,0.001,4137.7,4137.6,36.1388]
[1759274637306,0.001,4137.7,4137.6,36.1408]
[1759274637611,0.001,4137.7,4137.6,38.55766001]
[1759274638695,0.001,4137.7,4137.6,40.95766001]
[1759274639211,0.001,4137.7,4137.6,42.79285316]
[1759274640310,0.001,4138.0,4137.9,2.41668479]
[1759274640511,0.001,4138.0,4137.9,37.73148479]
[1759274640701,0.001,4138.2,4138.1,2.41656799]
[1759274640901,0.001,4138.2,4138.1,7.61056799]
[1759274641101,0.001,4138.2,4138.1,38.32056799]
[1759274641891,0.001,4138.2,4138.1,8.32056799]
[1759274642095,0.001,4138.2,4138.1,38.32056799]
[1759274642493,0.001,4138.2,4138.1,38.79793622]
[1759274647005,0.001,4138.2,4138.1,8.79793622]
[1759274647523,0.001,4138.2,4138.1,38.79793622]
[1759274649727,0.4284,4140.2,4138.2,2.4]
[1759274650025,2.41530338,4140.3,4138.1,36.38136823]
[1759274650026,0.1208,4139.2,4139.1,0.64923681]
[1759274650223,0.7789,4139.2,4139.1,16.93345581]
[1759274650428,0.7789,4139.2,4139.1,17.66037981]
[1759274650601,0.7789,4139.2,4139.1,17.011143]
[1759274651002,0.7015,4139.4,4139.1,17.011143]
[1759274651309,0.7015,4139.4,4139.2,15.19994925]
[1759274651310,0.7015,4139.3,4139.2,15.19994925]
[1759274651695,0.1208,4139.4,4139.2,14.550805]
[1759274651899,0.1208,4139.4,4139.3,3.44215545]
[1759274652419,0.5926,4139.4,4139.3,3.44215545]
[1759274652709,0.8223,4139.4,4139.3,2.793]
[1759274653426,0.1208,4139.4,4139.3,2.793]
[1759274653804,0.1208,4139.4,4139.3,23.598258]
[1759274654926,2.41553106,4139.9,4139.3,36.86124908]
[1759274654927,0.1208,4139.9,4139.3,36.86124908]
[1759274655130,0.1208,4139.9,4139.7,0.64910187]
[1759274655329,0.1208,4139.9,4139.8,2.81615575]
[1759274655631,0.1208,4140.1,4139.8,18.884879]
[1759274655830,0.1208,4140.1,4139.9,19.70546866]
[1759274656133,0.1208,4140.1,4140.0,2.792]
[1759274656537,0.8223,4140.1,4140.0,2.792]
[1759274658209,0.1208,4140.1,4140.0,2.792]
[1759274658407,0.1218,4140.3,4140.0,2.792]
[1759274658632,0.1218,4140.3,4140.0,3.44107166]
[1759274658932,0.4466,4140.2,4140.0,3.44107166]
[1759274659435,0.4466,4140.2,4140.1,0.64907166]
[1759274660104,0.3515,4140.3,4140.0,3.44107166]
[1759274660304,0.1218,4140.3,4140.1,0.64907166]
[1759274660637,0.1218,4140.3,4140.2,23.68538866]
[1759274660937,0.1218,4140.3,4140.2,17.459339]
[1759274661315,0.1218,4140.3,4140.2,16.73119]
[1759274661532,0.1218,4140.3,4140.2,16.25788]
[1759274661734,0.1218,4140.3,4140.2,15.614791]
[1759274662232,0.001,4140.3,4140.2,15.614791]
[1759274662433,0.001,4140.3,4140.2,20.05081917]
[1759274662637,0.001,4140.3,4140.2,16.68728308]
[1759274662822,0.001,4140.3,4140.2,15.821634]
[1759274663039,0.001,4140.3,4140.2,15.588634]
[1759274663247,0.001,4140.3,4140.2,15.821634]
[1759274663750,0.001,4140.3,4140.2,19.672998]
[1759274664156,0.001,4140.3,4140.2,20.53792844]
[1759274664356,0.001,4140.3,4140.2,19.672998]
[1759274664726,0.001,4140.3,4140.2,20.558165]
[1759274665128,0.001,4140.3,4140.2,21.88621044]
[1759274665450,0.001,4140.3,4140.2,21.021365]
[1759274665651,0.001,4140.3,4140.2,20.558165]
[1759274665857,0.001,4140.3,4140.2,19.953483]
[1759274666060,0.001,4140.3,4140.2,10.3431]
[1759274666235,0.001,4140.3,4140.2,15.125407]
[1759274666554,0.001,4140.3,4140.2,15.99035012]
[1759274666777,0.001,4140.3,4140.2,15.39488212]
[1759274666958,0.001,4140.3,4140.2,15.88655003]
[1759274667130,0.001,4140.3,4140.2,20.64418303]
[1759274667331,0.001,4140.3,4140.2,18.83423991]
[1759274667659,0.001,4140.3,4140.2,18.16392691]
[1759274668047,0.001,4140.3,4140.2,16.15688262]
[1759274668361,0.001,4140.3,4140.2,19.59801991]
[1759274669265,0.001,4140.3,4140.2,13.05501991]
[1759274669455,0.001,4140.3,4140.2,17.864352]
[1759274670335,0.001,4140.3,4140.2,19.104349]
[1759274670949,0.001,4140.3,4140.2,19.59413276]
[1759274671347,0.001,4140.3,4140.2,23.30816376]
[1759274671546,0.001,4140.3,4140.2,25.78981276]
[1759274671752,0.001,4140.3,4140.2,30.93129976]
[1759274671961,3.20828391,4140.3,4140.2,22.686542]
[1759274672160,3.20828391,4140.3,4140.1,0.86529531]
[1759274672161,0.792,4140.2,4140.1,0.86529531]
[1759274672367,0.9128,4140.2,4140.1,27.16175431]
[1759274672562,0.1208,4140.2,4140.1,26.881964]
[1759274672858,0.001,4140.3,4140.1,25.58025618]
[1759274673036,0.001,4140.3,4140.1,6.39929218]
[1759274673238,0.001,4140.3,4140.2,0.86529218]
[1759274673239,2.41633438,4140.3,4140.2,0.86529218]
[1759274673443,0.001,4140.3,4140.1,6.16629218]
[1759274674035,0.001,4140.3,4140.2,3.26529218]
[1759274675964,0.001,4140.3,4140.1,5.301]
[1759274675965,2.41534225,4140.2,4140.1,0.86529218]
[1759274676139,3.21244225,4140.2,4140.1,6.16529218]
[1759274676464,0.7971,4140.2,4140.1,10.79786118]
[1759274676677,4.00444225,4140.2,4140.1,8.56529218]
[1759274677560,1.5891,4140.2,4140.1,11.13109218]
[1759274677859,1.5891,4140.2,4140.1,11.13183221]
[1759274678075,1.5891,4140.2,4140.1,10.2658]
[1759274678437,1.3594,4140.2,4140.1,10.2658]
[1759274678664,0.9128,4140.2,4140.1,11.13208399]
[1759274678868,0.9128,4140.2,4140.1,10.2658]
[1759274680270,0.1218,4140.3,4140.2,2.4]
[1759274680465,0.1218,4140.3,4140.1,0.233]
[1759274680671,0.1218,4140.3,4140.2,7.7]
[1759274683270,0.1218,4140.3,4140.2,9.22887363]
[1759274683842,0.1218,4140.3,4140.2,7.9304]
[1759274684042,0.1218,4140.3,4140.2,9.22887363]
[1759274685369,0.1218,4140.3,4140.2,8.99847363]
[1759274686975,0.1218,4140.3,4140.2,9.22887363]
[1759274687157,0.1218,4140.3,4140.2,9.69907363]
[1759274687477,0.1218,4140.3,4140.2,9.22887363]
[1759274688179,0.1218,4140.3,4140.2,7.9304]
[1759274688759,0.001,4140.3,4140.2,39.19261211]
[1759274689075,0.001,4140.3,4140.2,22.32848059]
[1759274689296,0.001,4140.3,4140.2,24.06695201]
[1759274689849,0.001,4140.3,4140.2,17.53423101]
[1759274690049,0.001,4140.3,4140.2,15.32555959]
[1759274690249,0.001,4140.3,4140.2,20.132167]
[1759274690875,0.001,4140.3,4140.2,27.245099]
[1759274691071,0.001,4140.3,4140.2,16.69437542]
[1759274691275,0.001,4140.3,4140.2,20.254904]
[1759274691477,0.001,4140.3,4140.2,24.330122]
[1759274692054,0.001,4140.3,4140.2,21.824091]
[1759274692483,0.001,4140.3,4140.2,24.222398]
[1759274693363,0.001,4140.3,4140.2,23.896064]
[1759274693554,0.001,4140.3,4140.2,24.244906]
[1759274694250,0.001,4140.3,4140.2,23.643296]
[1759274694452,0.001,4140.3,4140.2,27.200451]
[1759274694656,0.001,4140.3,4140.2,22.168965]
[1759274695281,0.001,4140.3,4140.2,6.248809]
[1759274695466,0.001,4140.3,4140.2,12.051992]
[1759274695664,0.001,4140.3,4140.2,2.511]
[1759274695871,0.792,4140.2,4140.0,1.30263409]
[1759274696058,0.792,4140.2,4140.1,6.60157837]
[1759274696259,0.793,4140.3,4140.1,6.60157837]
[1759274696459,3.20828401,4140.3,4140.1,6.60157837]
[1759274696982,0.001,4140.3,4140.1,6.60157837]
[1759274697187,0.792,4140.2,4140.1,6.60157837]
[1759274697569,0.001,4140.3,4140.1,6.60157837]
[1759274697769,0.001,4140.3,4140.2,1.30257837]
[1759274697970,0.001,4140.3,4140.1,6.60157837]
[1759274698176,0.792,4140.2,4140.1,6.60157837]
[1759274698372,0.793,4140.3,4140.1,11.330611]
[1759274698555,0.793,4140.3,4140.2,1.30245821]
[1759274698755,0.001,4140.3,4140.2,1.30245821]
[1759274699074,0.001,4140.3,4140.2,32.4]
[1759274699274,0.001,4140.3,4140.2,33.1006]
[1759274700161,0.001,4140.3,4140.2,30.981547]
[1759274700889,0.001,4140.3,4140.2,31.451747]
[1759274701199,0.001,4140.3,4140.2,33.1006]
[1759274701562,0.001,4140.3,4140.2,31.735894]
[1759274701757,0.001,4140.3,4140.2,28.29866]
[1759274702176,0.001,4140.3,4140.2,22.017367]
[1759274702394,0.001,4140.3,4140.2,13.497093]
[1759274702593,0.001,4140.3,4140.2,13.778791]
[1759274702808,0.001,4140.3,4140.2,14.723791]
[1759274703091,0.001,4140.3,4140.2,15.956313]
[1759274703487,0.001,4140.3,4140.2,18.806905]
[1759274703794,0.001,4140.3,4139.7,2.4156321]
[1759274703795,0.792,4140.1,4139.7,2.511]
[1759274704006,3.20757563,4139.8,4139.7,2.511]
[1759274704211,3.89907563,4139.8,4139.7,2.511]
[1759274704499,3.89907563,4139.8,4139.7,3.37932381]
[1759274704705,1.4835,4139.8,4139.7,5.298]
[1759274704904,3.89907563,4139.8,4139.7,5.298]
[1759274707881,1.4835,4139.8,4139.7,5.298]
[1759274708089,3.66937563,4139.8,4139.7,5.298]
[1759274708273,3.20757563,4139.8,4139.7,5.94857381]
[1759274708975,3.32837563,4139.8,4139.7,5.94857381]
[1759274710800,4.01987563,4139.8,4139.7,5.94857381]
[1759274711001,4.01987563,4139.8,4139.7,5.298]
[1759274712406,0.792,4140.1,4139.7,20.331373]
[1759274712583,0.793,4140.3,4139.9,0.65013833]
[1759274712909,3.20740059,4140.1,4140.0,2.787]
[1759274714898,3.2073537,4140.2,4140.0,2.787]
[1759274715078,3.20740059,4140.1,4140.0,2.787]
[1759274719117,3.67220059,4140.1,4140.0,2.787]
[1759274719411,3.20740059,4140.1,4140.0,2.787]
[1759274722515,3.32820059,4140.1,4140.0,2.787]
[1759274723623,4.02270059,4140.1,4140.0,2.787]
[1759274723923,4.02270059,4140.1,4139.8,0.65013833]
[1759274723924,3.20745893,4140.0,4139.8,0.65013833]
[1759274724123,3.20745893,4140.0,4139.7,0.65048786]
[1759274724124,2.41557563,4139.8,4139.7,0.65048786]
[1759274724425,2.41557563,4139.8,4139.7,5.298]
[1759274724629,2.53637563,4139.8,4139.7,5.298]
[1759274724924,2.53637563,4139.8,4139.7,5.94860209]
[1759274725223,3.32837563,4139.8,4139.7,5.94860209]
[1759274726741,3.32837563,4139.8,4139.7,5.298]
[1759274729315,2.41567606,4139.7,4139.5,1.10932381]
[1759274729619,2.41567606,4139.7,4139.6,5.538]
[1759274729816,2.41567606,4139.7,4139.6,0.241]
[1759274730008,2.41567606,4139.7,4139.6,5.538]
[1759274731409,2.41567606,4139.7,4139.6,6.40632381]
[1759274732615,2.41567606,4139.7,4139.6,6.16532381]
[1759274733314,2.41567606,4139.7,4139.6,5.297]
[1759274733730,2.41567606,4139.7,4139.4,1.54348572]
[1759274733731,2.41575069,4139.5,4139.4,1.30248572]
[1759274733917,0.1208,4139.5,4139.4,7.697]
[1759274734521,2.53655069,4139.5,4139.4,7.697]
[1759274736845,3.32855069,4139.5,4139.4,7.697]
[1759274737135,3.32855069,4139.5,4139.4,4.912]
[1759274737434,3.20780905,4139.4,4139.2,1.30248572]
[1759274737614,3.90230905,4139.4,4139.3,5.297]
[1759274738006,3.90230905,4139.4,4138.6,2.17957142]
[1759274738007,3.20786741,4139.3,4139.2,0.65180718]
[1759274738238,3.20786741,4139.3,4138.1,1.74007796]
[1759274738239,0.792,4138.3,4138.1,0.002]
[1759274738564,2.41628772,4138.6,4138.1,0.002]
[1759274738565,3.20850959,4138.2,4138.1,0.002]
[1759274738865,3.90300959,4138.2,4138.1,0.002]
[1759274739231,3.90300959,4138.2,4138.1,3.272]
[1759274739631,4.62862088,4138.2,4138.1,3.272]
[1759274739864,5.60856799,4138.1,4138.0,1e-08]
[1759274740043,3.20874319,4137.8,4137.7,0.002]
[1759274740563,3.90324319,4137.8,4137.7,0.002]
[1759274741353,3.90324319,4137.8,4137.7,2.787]
[1759274744065,4.6289756,4137.8,4137.7,2.787]
[1759274745466,3.9344756,4137.8,4137.7,3.0166]
[1759274745863,3.9344756,4137.8,4137.7,3.4681]
[1759274747074,3.9344756,4137.8,4137.7,3.0166]
[1759274747477,3.20874319,4137.8,4137.7,3.4681]
[1759274748050,3.32954319,4137.8,4137.7,3.4681]
[1759274751250,3.32954319,4137.8,4137.7,3.0166]
[1759274751494,3.32954319,4137.8,4137.7,3.4681]
[1759274753850,3.32954319,4137.8,4137.7,3.0166]
[1759274754057,3.32954319,4137.8,4137.7,3.4681]
[1759274754676,0.6567,4138.8,4137.7,3.4681]
[1759274754982,0.1208,4137.8,4137.7,2.787]
[1759274755181,0.9128,4137.8,4137.7,2.787]
[1759274755365,0.9128,4137.8,4137.7,3.4681]
[1759274761057,3.32954319,4137.8,4137.7,3.4681]
[1759274763273,3.32954319,4137.8,4137.7,3.0166]
[1759274764564,3.32954319,4137.8,4137.7,3.4681]
[1759274765376,3.32954319,4137.8,4137.7,3.0166]
[1759274765775,3.32954319,4137.8,4137.7,5.299]
[1759274766394,3.32954319,4137.8,4137.7,0.002]
[1759274766566,3.32954319,4137.8,4137.7,5.299]
[1759274766973,2.41610089,4138.9,4137.7,5.9801]
[1759274767179,0.2266,4139.0,4137.7,5.9801]
[1759274767180,3.20844425,4138.4,4137.8,0.6811]
[1759274767495,0.792,4138.4,4137.9,31.462505]
[1759274767698,0.792,4138.4,4138.0,23.339725]
[1759274767994,0.792,4138.2,4138.1,23.399619]
[1759274768214,0.792,4138.2,4138.1,24.080719]
[1759274768695,2.41628376,4138.6,4138.1,24.080719]
[1759274768696,0.792,4138.4,4138.1,24.080719]
[1759274768888,0.792,4138.4,4138.2,0.6811]
[1759274769083,0.792,4138.4,4138.3,3.0136]
[1759274769587,3.20843777,4138.4,4138.3,3.4651]
[1759274770399,0.792,4138.4,4138.3,3.4651]
[1759274770585,3.2083928,4138.4,4138.3,3.4651]
[1759274770895,3.2083928,4138.4,4138.3,14.501991]
[1759274771266,3.2083928,4138.4,4138.3,9.928081]
[1759274771495,3.2083928,4138.4,4138.3,6.7862]
[1759274771702,3.2083928,4138.4,4138.3,6.3347]
[1759274772401,0.792,4138.4,4138.3,6.7857]
[1759274772586,0.792,4138.4,4138.3,18.361831]
[1759274772790,0.792,4138.4,4138.3,15.319854]
[1759274772996,0.792,4138.4,4138.3,11.702839]
[1759274773597,0.792,4138.4,4138.3,13.30875]
[1759274774679,0.792,4138.4,4138.3,13.675971]
[1759274774883,0.792,4138.4,4138.3,13.085839]
[1759274775818,0.792,4138.4,4138.3,13.675151]
[1759274776111,0.792,4138.4,4138.3,13.434151]
[1759274776313,0.792,4138.4,4138.3,14.114751]
[1759274776811,0.792,4138.4,4138.3,13.231691]
[1759274777014,0.9128,4138.4,4138.3,13.231691]
[1759274777917,0.9128,4138.4,4138.3,13.083437]
[1759274778093,0.9128,4138.4,4138.3,13.711012]
[1759274778590,0.9128,4138.4,4138.3,11.637842]
[1759274778798,0.9128,4138.4,4138.3,11.680165]
[1759274779182,0.9128,4138.4,4138.3,11.634302]
[1759274780612,0.9128,4138.4,4138.3,11.417301]
[1759274781517,0.9128,4138.4,4138.3,11.663208]
[1759274781721,0.9128,4138.4,4138.3,12.262416]
[1759274781924,0.9128,4138.4,4138.3,11.663208]
[1759274782419,0.9128,4138.4,4138.3,11.664508]
[1759274782920,0.9128,4138.4,4138.3,11.709435]
[1759274783634,0.9128,4138.4,4138.3,11.467135]
[1759274783934,0.9128,4138.4,4138.3,11.273864]
[1759274784901,0.9128,4138.4,4138.3,3.0263]
[1759274785201,0.9128,4138.4,4138.3,11.514922]
[1759274785622,0.9128,4138.4,4138.3,11.272622]
[1759274786150,0.9128,4138.4,4138.3,11.27022]
[1759274786645,0.9128,4138.4,4138.3,12.725512]
[1759274786844,0.9128,4138.4,4138.3,13.200212]
[1759274787049,0.9128,4138.4,4138.3,15.683232]
[1759274787338,0.9128,4138.4,4138.3,15.739638]
[1759274787530,0.9128,4138.4,4138.3,15.591232]
[1759274787729,0.9128,4138.4,4138.3,15.743012]
[1759274788339,0.9128,4138.4,4138.3,13.02063]
[1759274788939,0.9128,4138.4,4138.3,13.378103]
[1759274789138,0.9128,4138.4,4138.3,12.929872]
[1759274789301,0.9128,4138.4,4138.3,13.500084]
[1759274789707,0.9128,4138.4,4138.3,13.742384]
[1759274790310,0.9128,4138.4,4138.3,13.559749]
[1759274791127,0.9138,4138.4,4138.3,13.559749]
[1759274791332,0.9138,4138.4,4138.3,13.707363]
[1759274791839,0.9138,4138.4,4138.3,12.01843]
[1759274792340,0.9138,4138.4,4138.3,13.718586]
[1759274792638,0.9138,4138.4,4138.3,13.087746]
[1759274792839,0.9138,4138.4,4138.3,12.008022]
[1759274793310,0.9138,4138.4,4138.3,13.639796]
[1759274793711,0.9138,4138.4,4138.3,12.701256]
[1759274793943,0.1218,4138.4,4138.3,12.701256]
[1759274794245,0.9138,4138.4,4138.3,12.701256]
[1759274794465,0.9138,4138.4,4138.3,14.781796]
[1759274795144,0.9138,4138.4,4138.3,13.654913]
[1759274795310,0.9138,4138.4,4138.3,14.286347]
[1759274796544,0.9138,4138.4,4138.3,15.373952]
[1759274797640,0.9138,4138.4,4138.3,16.034558]
[1759274797942,0.9138,4138.4,4138.3,15.837558]
[1759274798146,0.9138,4138.4,4138.3,15.016154]
[1759274798745,0.9138,4138.4,4138.3,15.258454]
[1759274799050,0.9138,4138.4,4138.3,15.765621]
[1759274799848,0.9138,4138.4,4138.3,18.050023]
[1759274800746,0.9138,4138.4,4138.3,17.807723]
[1759274801050,0.9138,4138.4,4138.3,17.610723]
[1759274801458,0.9138,4138.4,4138.3,20.357323]
[1759274802042,0.9138,4138.4,4138.3,21.689515]
[1759274802243,0.9138,4138.4,4138.3,26.87583]